bitfinex-derivatives/quotes_SOLF0:USTF0_20260308
["timestamp","ask_amount","ask_price","bid_price","bid_amount"]
[1772965276296,6.13313193,83.598,83.558,10.771]
[1772965276496,6.13078913,83.596,83.558,10.771]
[1772965278306,9.5106668,83.595,83.558,10.771]
[1772965278505,6.13078913,83.596,83.558,10.771]
[1772965278806,9.51066587,83.595,83.558,10.771]
[1772965279005,6.13078913,83.596,83.558,10.771]
[1772965279208,9.51076121,83.595,83.558,10.771]
[1772965279406,9.51076121,83.594,83.558,10.771]
[1772965279606,6.13078913,83.596,83.558,10.771]
[1772965279807,15.63739601,83.595,83.558,10.771]
[1772965280108,9.51399346,83.594,83.558,10.771]
[1772965280310,6.12340255,83.595,83.558,10.771]
[1772965280510,9.51399286,83.594,83.558,10.771]
[1772965280712,6.12340255,83.595,83.558,10.771]
[1772965280911,9.51399286,83.594,83.558,10.771]
[1772965281110,6.12340255,83.595,83.558,10.771]
[1772965281308,9.514131,83.594,83.558,10.771]
[1772965281509,6.11365312,83.594,83.558,10.771]
[1772965289010,6.11365312,83.594,83.506,29.76010433]
[1772965289211,6.11365312,83.594,83.505,21.556]
[1772965289416,6.11384973,83.592,83.505,21.556]
[1772965289618,6.11384973,83.59,83.505,21.556]
[1772965289817,6.11384973,83.588,83.543,10.773]
[1772965292213,6.11384973,83.588,83.55,10.772]
[1772965298921,9.85013949,83.587,83.55,10.772]
[1772965299222,6.10554992,83.586,83.55,10.772]
[1772965299424,15.95564547,83.585,83.508,21.555]
[1772965299724,10.767,83.593,83.508,21.555]
[1772965299725,6.10554992,83.583,83.508,21.555]
[1772965300115,6.10554992,83.583,83.546,10.772]
[1772965306024,6.12294741,83.581,83.546,10.772]
[1772965306728,6.12251084,83.579,83.546,10.772]
[1772965313732,40.55,83.592,83.546,10.772]
[1772965313927,10.767,83.589,83.546,10.772]
[1772965314229,6.11809474,83.587,83.546,10.772]
[1772965314532,6.11726313,83.585,83.539,10.773]
[1772965314732,6.11726313,83.583,83.539,10.773]
[1772965314932,6.11726313,83.581,83.539,10.773]
[1772965318032,6.11726313,83.581,83.508,21.555]
[1772965318832,6.11726313,83.581,83.547,10.772]
[1772965323331,6.11726313,83.581,83.509,3.69174336]
[1772965323527,4.03879335,83.578,83.509,3.69174336]
[1772965323726,10.00050024,83.577,83.509,3.69174336]
[1772965323927,13.95698949,83.576,83.509,3.69174336]
[1772965324126,10.00050024,83.575,83.509,3.69174336]
[1772965324326,3.95648925,83.576,83.509,3.69174336]
[1772965324327,10.00050024,83.574,83.509,3.69174336]
[1772965324530,3.95648925,83.576,83.509,3.69174336]
[1772965324732,9.99820761,83.575,83.535,10.774]
[1772965324930,3.95648925,83.576,83.536,3.94599632]
[1772965325130,13.93030784,83.575,83.536,3.94599632]
[1772965325330,3.95648925,83.575,83.536,3.94599632]
[1772965326336,9.97208172,83.574,83.536,3.94599632]
[1772965326536,3.95648925,83.575,83.536,3.94599632]
[1772965326733,3.95648925,83.573,83.541,3.94599632]
[1772965326929,3.95648925,83.582,83.541,3.94599632]
[1772965327133,3.95648925,83.58,83.541,3.94599632]
[1772965327834,3.95648925,83.58,83.544,3.94599632]
[1772965328630,3.95648925,83.58,83.547,10.772]
[1772965328837,3.95648925,83.58,83.547,14.71799632]
[1772965335636,10.767,83.59,83.529,928.19035161]
[1772965335637,40.55,83.592,83.55,3.94599632]
[1772965335839,4.112,83.592,83.55,3.94599632]
[1772965336341,3.95648925,83.59,83.55,3.94599632]
[1772965336536,3.95648925,83.588,83.55,3.94599632]
[1772965337541,4.112,83.592,83.56,3.94599632]
[1772965337946,4.112,83.592,83.563,10.77]
[1772965338138,4.112,83.592,83.564,3.94599632]
[1772965338640,3.95648925,83.612,83.575,3.94599632]
[1772965338841,11.20377533,83.645,83.575,3.94599632]
[1772965339138,29.87878077,83.689,83.529,928.19035161]
[1772965339139,11.20377533,83.664,83.61,3.94599632]
[1772965339345,11.20377533,83.694,83.61,3.94599632]
[1772965339542,9.80970269,83.691,83.61,3.94599632]
[1772965339741,9.80970269,83.69,83.61,3.94599632]
[1772965339941,9.80970269,83.689,83.61,3.94599632]
[1772965340147,9.80970269,83.688,83.61,3.94599632]
[1772965340344,9.80970269,83.687,83.61,3.94599632]
[1772965340543,9.80970269,83.686,83.61,3.94599632]
[1772965340745,3.95648925,83.684,83.612,3.94599632]
[1772965340947,3.95648925,83.682,83.612,3.94599632]
[1772965341245,3.95648925,83.68,83.612,3.94599632]
[1772965341445,3.95648925,83.678,83.612,3.94599632]
[1772965341640,3.95648925,83.676,83.612,3.94599632]
[1772965341842,3.95648925,83.666,83.612,3.94599632]
[1772965342041,3.95648925,83.666,83.557,3.94599632]
[1772965342238,3.95648925,83.666,83.556,12.00751973]
[1772965342239,3.95648925,83.666,83.571,3.94599632]
[1772965342549,3.95648925,83.65,83.592,3.94599632]
[1772965343145,3.95648925,83.647,83.592,3.94599632]
[1772965344153,3.95648925,83.647,83.598,3.94599632]
[1772965345046,3.95648925,83.66,83.609,3.94599632]
[1772965345444,31.07,83.665,83.609,3.94599632]
[1772965346744,31.07,83.665,83.622,3.94599632]
[1772965347549,41.827,83.665,83.622,3.94599632]
[1772965347750,45.78348925,83.665,83.622,3.94599632]
[1772965348044,3.95648925,83.664,83.622,3.94599632]
[1772965349949,31.07,83.665,83.622,3.94599632]
[1772965352645,31.07,83.665,83.628,3.94835138]
[1772965354043,3.72786525,83.664,83.616,3.94835138]
[1772965354943,3.72786525,83.662,83.616,3.94835138]
[1772965356155,31.07,83.665,83.618,3.94835138]
[1772965356349,31.07,83.665,83.619,3.94835138]
[1772965357044,3.72786525,83.664,83.619,3.94835138]
[1772965357848,3.72786525,83.664,83.621,3.94835138]
[1772965358454,3.72786525,83.663,83.621,3.94835138]
[1772965363254,3.72786525,83.663,83.624,3.94835138]
[1772965366258,3.72786525,83.663,83.623,10.763]
[1772965366259,3.72786525,83.663,83.625,3.94835138]
[1772965367061,31.07,83.665,83.629,3.94835138]
[1772965368252,515.76394405,83.692,83.629,3.94835138]
[1772965368458,14.22595018,83.701,83.651,10.759]
[1772965369164,14.22595018,83.718,83.66,10.758]
[1772965369554,14.22595018,83.718,83.669,10.757]
[1772965369954,14.78447632,83.753,83.63,294.87948515]
[1772965369955,14.22595018,83.755,83.63,294.87948515]
[1772965370169,14.22595018,83.751,83.687,10.754]
[1772965370558,9.68913305,83.75,83.63,294.87948515]
[1772965370764,14.23485302,83.723,83.655,10.758]
[1772965370966,14.23485302,83.723,83.63,294.87948515]
[1772965371161,11.20377533,83.763,83.63,294.87948515]
[1772965371162,14.23485302,83.721,83.63,294.87948515]
[1772965371564,14.23485302,83.719,83.63,294.87948515]
[1772965372166,5.383,83.72,83.63,294.87948515]
[1772965372568,14.23485302,83.734,83.63,294.87948515]
[1772965372769,14.31147284,83.756,83.699,10.753]
[1772965373469,298.0,83.819,83.65,62.0]
[1772965373470,14.31147284,83.769,83.65,62.0]
[1772965373965,14.31147284,83.769,83.665,21.515]
[1772965374469,14.26684022,83.756,83.685,10.755]
[1772965374670,14.26684022,83.756,83.65,62.0]
[1772965374970,14.26684022,83.791,83.65,62.0]
[1772965375270,9.67404514,83.792,83.65,62.0]
[1772965375271,14.26684022,83.773,83.701,10.753]
[1772965375472,14.26684022,83.773,83.65,62.0]
[1772965375666,14.26684022,83.771,83.654,21.518]
[1772965376872,14.27674322,83.764,83.698,10.753]
[1772965377266,14.27674322,83.764,83.654,21.518]
[1772965377467,14.27674322,83.761,83.708,10.752]
[1772965378780,14.27674322,83.761,83.697,10.753]
[1772965378978,14.27674322,83.761,83.658,21.517]
[1772965379883,14.27674322,83.761,83.711,10.751]
[1772965380283,14.26764795,83.759,83.705,10.752]
[1772965380678,14.26764795,83.759,83.661,21.516]
[1772965380873,14.26764795,83.759,83.717,10.75]
[1772965381482,14.26764795,83.759,83.65,62.0]
[1772965381483,14.17884286,83.778,83.65,62.0]
[1772965381779,11.20377533,83.834,83.65,62.0]
[1772965381983,14.17884286,83.793,83.65,62.0]
[1772965382484,14.17632845,83.78,83.679,21.511]
[1772965382684,14.17632845,83.78,83.65,62.0]
[1772965382883,14.17632845,83.78,83.63,294.87948515]
[1772965382884,9.58165974,83.779,83.63,294.87948515]
[1772965383084,14.17632845,83.777,83.63,294.87948515]
[1772965383280,14.17632845,83.752,83.63,294.87948515]
[1772965383876,21.48,83.801,83.63,294.87948515]
[1772965383877,14.17638887,83.738,83.639,21.522]
[1772965384083,14.17638887,83.738,83.63,294.87948515]
[1772965384281,14.17638887,83.736,83.641,21.521]
[1772965384779,14.20906191,83.753,83.63,294.87948515]
[1772965385278,2.07802755,83.811,83.633,167.405]
[1772965385479,201.95705461,83.82,83.633,167.405]
[1772965385683,9.57591877,83.819,83.633,167.405]
[1772965385985,201.95705461,83.82,83.64,62.0]
[1772965386182,201.95705461,83.82,83.739,10.748]
[1772965386579,201.95705461,83.82,83.684,21.51]
[1772965386776,2.07746931,83.811,83.684,21.51]
[1772965387184,7.03897449,83.793,83.717,10.751]
[1772965387690,7.03897449,83.767,83.659,21.516]
[1772965387887,7.03897449,83.767,83.631,11.97]
[1772965388288,7.03897449,83.767,83.719,10.75]
[1772965389182,7.03897449,83.767,83.71,10.751]
[1772965389688,2.07746931,83.811,83.71,10.751]
[1772965389689,7.03891732,83.766,83.71,10.751]
[1772965390178,7.03891732,83.761,83.701,10.753]
[1772965390382,7.03891732,83.761,83.661,21.516]
[1772965390582,7.03891732,83.761,83.631,11.97]
[1772965391182,7.03891732,83.761,83.725,10.749]
[1772965391584,7.03891732,83.761,83.631,11.97]
[1772965392184,7.03891732,83.761,83.666,21.515]
[1772965392584,7.01684611,83.777,83.631,11.97]
[1772965393180,7.01684611,83.774,83.716,10.751]
[1772965393687,7.01684611,83.774,83.725,10.75]
[1772965394282,7.01684611,83.774,83.733,10.748]
[1772965394687,7.01684611,83.774,83.641,11.97]
[1772965394688,7.01599133,83.806,83.663,167.344]
[1772965394984,5.213e-05,83.806,83.753,1.10554364]
[1772965395284,9.55392337,83.891,83.753,1.10554364]
[1772965395484,10.736,83.832,83.753,1.10554364]
[1772965395883,2.07603787,83.871,83.753,1.10554364]
[1772965396079,10.733,83.855,83.788,10.741]
[1772965396278,10.733,83.855,83.779,1.10554364]
[1772965396279,9.53673771,83.89,83.779,1.10554364]
[1772965396486,11.02429845,83.954,83.779,1.10554364]
[1772965396691,11.02429845,83.949,83.753,1.1482013]
[1772965396884,2.07515892,83.911,83.753,1.1482013]
[1772965397192,2.07515892,83.911,83.801,1.1482013]
[1772965397193,3.9542949,83.886,83.801,1.1482013]
[1772965397692,3.9542949,83.901,83.816,1.1482013]
[1772965397885,3.9542949,83.92,83.831,1.1482013]
[1772965398084,3.9542949,83.92,83.814,1.1482013]
[1772965398282,2.07512798,83.931,83.814,1.1482013]
[1772965398283,3.9542949,83.896,83.814,1.1482013]
[1772965398786,3.9542949,83.896,83.809,291.8632182]
[1772965398787,3.9542949,83.896,83.832,1.25348463]
[1772965399292,3.9542949,83.939,83.852,1.25348463]
[1772965399888,3.9542949,83.938,83.852,1.25348463]
[1772965400484,3.9542949,83.922,83.817,1.05755745]
[1772965400986,3.9542949,83.92,83.831,1.05755745]
[1772965401889,3.9542949,83.92,83.847,1.05755745]
[1772965402088,3.9542949,83.944,83.847,1.05755745]
[1772965402290,3.9542949,84.003,83.847,1.05755745]
[1772965402588,166.496,84.091,83.835,190.82]
[1772965402589,3.9542949,83.986,83.836,1.02035355]
[1772965403186,3.9542949,83.938,83.836,1.02035355]
[1772965403693,3.9542949,83.938,83.853,10.733]
[1772965403893,3.9542949,83.938,83.854,1.02035355]
[1772965404297,3.9542949,83.936,83.854,1.02035355]
[1772965404687,3.9542949,83.934,83.854,1.02035355]
[1772965404888,3.9542949,83.934,83.809,291.8632182]
[1772965404889,3.9542949,83.934,83.834,0.77500612]
[1772965405690,3.9542949,83.908,83.834,0.77500612]
[1772965405893,3.9542949,83.908,83.81,0.77500612]
[1772965406088,3.9542949,83.908,83.809,291.8632182]
[1772965406294,3.9542949,83.868,83.761,0.77500612]
[1772965406793,3.9542949,83.829,83.717,0.79650057]
[1772965407189,14.6902949,83.829,83.744,10.747]
[1772965407393,3.9542949,83.828,83.744,10.747]
[1772965407791,14.78447632,83.919,83.667,12.1768439]
[1772965407792,3.9542949,83.895,83.757,0.79650057]
[1772965409595,3.9542949,83.895,83.771,0.91045516]
[1772965409798,3.9542949,83.875,83.791,10.741]
[1772965410387,3.9542949,83.871,83.794,10.741]
[1772965410588,3.9542949,83.871,83.794,11.72510817]
[1772965410796,3.9542949,83.871,83.795,0.98410817]
[1772965411597,3.9542949,83.929,83.802,0.98410817]
[1772965412300,3.9542949,83.927,83.844,0.98410817]
[1772965413005,3.81077866,83.924,83.803,0.99040092]
[1772965413803,3.81077866,83.877,83.803,0.99040092]
[1772965413997,3.81077866,83.877,83.791,10.741]
[1772965414497,3.81077866,83.877,83.734,21.497]
[1772965414498,3.81077866,83.877,83.8,0.93497128]
[1772965415005,3.81077866,83.877,83.753,0.93497128]
[1772965415502,3.81077866,83.874,83.798,10.74]
[1772965415692,3.81077866,83.874,83.789,0.93497128]
[1772965416093,3.81077866,83.872,83.795,10.74]
[1772965416293,3.81077866,83.872,83.796,0.93497128]
[1772965416694,3.81077866,83.872,83.804,0.9264431]
[1772965416897,3.81077866,83.935,83.804,0.9264431]
[1772965417902,3.81077866,83.901,83.814,0.9264431]
[1772965418802,3.81077866,83.885,83.814,0.9264431]
[1772965419102,3.81077866,83.885,83.734,21.497]
[1772965419103,3.81077866,83.885,83.795,0.87755699]
[1772965419298,3.81077866,83.881,83.798,10.74]
[1772965420907,3.81077866,83.874,83.798,10.74]
[1772965421801,3.81077866,83.871,83.798,10.74]
[1772965422310,3.81077866,83.871,83.805,10.739]
[1772965422606,3.81077866,83.871,83.799,0.87536855]
[1772965423201,3.81077866,83.87,83.799,0.87536855]
[1772965423403,3.81077866,83.87,83.777,0.87609157]
[1772965424002,3.81077866,83.856,83.779,0.87609157]
[1772965424606,3.81077866,83.853,83.779,0.87609157]
[1772965426207,3.81077866,83.851,83.783,10.742]
[1772965427113,3.81077866,83.851,83.779,0.87609157]
[1772965427114,3.81077866,83.847,83.779,0.87609157]
[1772965427812,3.81077866,83.841,83.779,0.87609157]
[1772965428013,3.81077866,83.841,83.781,10.742]
[1772965429713,3.81077866,83.841,83.771,10.744]
[1772965430012,3.81077866,83.837,83.744,0.85995246]
[1772965430210,3.81077866,83.837,83.752,948.29289801]
[1772965430406,3.81077866,83.808,83.752,937.54689801]
[1772965431313,3.81077866,83.807,83.752,937.54689801]
[1772965432309,10.85550208,83.857,83.752,937.54689801]
[1772965432310,3.81077866,83.804,83.752,937.54689801]
[1772965433808,3.81077866,83.854,83.758,0.84148397]
[1772965434418,3.81077866,83.854,83.787,0.84148397]
[1772965435911,3.81077866,83.854,83.803,10.739]
[1772965436116,3.81077866,83.854,83.768,0.79445476]
[1772965436616,3.81077866,83.849,83.768,0.79445476]
[1772965437920,3.81077866,83.847,83.789,10.741]
[1772965438323,3.81077866,83.845,83.779,10.743]
[1772965439818,3.81077866,83.84,83.779,10.743]
[1772965440217,3.81077866,83.84,83.789,10.741]
[1772965440719,3.81077866,83.84,83.752,937.54689801]
[1772965440926,3.81077866,83.84,83.766,10.744]
[1772965441223,10.85550208,83.869,83.753,0.77741851]
[1772965441224,3.81077866,83.838,83.753,0.77741851]
[1772965442923,3.71430607,83.835,83.775,10.743]
[1772965443323,3.71430607,83.835,83.753,0.77741851]
[1772965443726,10.737,83.821,83.766,10.744]
[1772965444021,3.71430607,83.821,83.766,10.744]
[1772965445317,3.71430607,83.821,83.774,10.743]
[1772965445518,21.459,83.882,83.775,0.84169054]
[1772965445519,4.04747912,83.849,83.775,0.84169054]
[1772965446426,4.04747912,83.849,83.789,10.741]
[1772965446623,4.04747912,83.849,83.775,0.84169054]
[1772965448929,4.04747912,83.844,83.775,0.84169054]
[1772965449424,10.735,83.835,83.779,10.743]
[1772965449624,21.459,83.885,83.752,937.54689801]
[1772965449625,4.04747912,83.834,83.757,0.82245484]
[1772965450028,10.736,83.832,83.757,0.82245484]
[1772965450428,14.78347912,83.832,83.757,0.82245484]
[1772965450727,4.04747912,83.831,83.757,0.82245484]
[1772965451027,4.04747912,83.831,83.778,10.743]
[1772965451419,4.04747912,83.831,83.786,10.742]
[1772965454925,4.04747912,83.849,83.787,0.7229559]
[1772965455131,4.04747912,83.849,83.805,10.739]
[1772965455333,4.04747912,83.849,83.803,0.7229559]
[1772965455631,21.453,83.907,83.803,0.7229559]
[1772965455632,4.04747912,83.867,83.812,10.738]
[1772965456430,4.04747912,83.865,83.812,10.738]
[1772965457033,4.04747912,83.864,83.812,10.738]
[1772965457634,4.04747912,83.864,83.819,10.737]
[1772965457932,4.04747912,83.864,83.803,0.7229559]
[1772965458333,4.04747912,83.854,83.811,10.738]
[1772965458730,4.04747912,83.854,83.787,0.73601923]
[1772965458930,4.04747912,83.852,83.803,10.739]
[1772965459431,4.04747912,83.846,83.794,10.741]
[1772965460632,4.04747912,83.86,83.787,0.72191873]
[1772965460834,4.04747912,83.858,83.787,0.72191873]
[1772965461035,4.04747912,83.844,83.794,10.741]
[1772965461728,4.04747912,83.844,83.802,10.74]
[1772965462333,4.04747912,83.844,83.787,0.72191873]
[1772965463841,4.04747912,83.844,83.794,10.741]
[1772965464729,4.04747912,83.844,83.802,10.74]
[1772965466130,10.85550208,83.877,83.787,0.72191873]
[1772965466332,4.04747912,83.865,83.821,10.737]
[1772965469642,4.04747912,83.865,83.813,10.738]
[1772965470036,4.04747912,83.865,83.8,0.78767721]
[1772965470343,4.04747912,83.862,83.8,0.78767721]
[1772965471845,4.04747912,83.862,83.814,10.738]
[1772965472446,4.04747912,83.862,83.821,10.737]
[1772965472947,4.04747912,83.862,83.812,10.738]
[1772965474049,4.04747912,83.862,83.774,21.487]
[1772965474050,4.04747912,83.862,83.817,10.738]
[1772965475745,3.92493375,83.893,83.817,0.68356184]
[1772965475952,3.92493375,83.891,83.817,0.68356184]
[1772965476151,3.92493375,83.889,83.817,0.68356184]
[1772965476351,3.92493375,83.887,83.817,0.68356184]
[1772965476542,10.85550208,83.895,83.817,0.68356184]
[1772965476543,3.92493375,83.885,83.817,0.68356184]
[1772965476745,3.92493375,83.876,83.825,10.737]
[1772965477343,3.92493375,83.874,83.825,10.737]
[1772965477744,3.92493375,83.87,83.825,10.737]
[1772965479350,3.92493375,83.87,83.774,33.417]
[1772965479351,3.92493375,83.893,83.826,0.6683375]
[1772965479552,3.92493375,83.891,83.826,0.6683375]
[1772965479757,3.92493375,83.889,83.826,0.6683375]
[1772965479951,3.92493375,83.887,83.826,0.6683375]
[1772965480252,3.92493375,83.887,83.839,10.735]
[1772965481060,3.92493375,83.878,83.824,10.737]
[1772965481961,3.92493375,83.876,83.824,10.737]
[1772965482962,3.92493375,83.872,83.815,10.738]
[1772965483761,3.92493375,83.865,83.815,10.738]
[1772965483961,3.92493375,83.865,83.812,0.66333779]
[1772965484762,3.92493375,83.861,83.814,10.738]
[1772965485366,3.92493375,83.895,83.815,0.56387471]
[1772965485664,3.92493375,83.893,83.815,0.56387471]
[1772965485861,3.92493375,83.891,83.815,0.56387471]
[1772965486061,11.11327374,83.901,83.815,0.56387471]
[1772965486062,3.92493375,83.889,83.815,0.56387471]
[1772965486265,3.92493375,83.887,83.815,0.56387471]
[1772965486561,3.92493375,83.885,83.815,0.56387471]
[1772965486762,3.92493375,83.878,83.824,10.737]
[1772965487152,3.92493375,83.876,83.824,10.737]
[1772965489062,3.92493375,83.876,83.828,0.57739165]
[1772965489259,3.92493375,83.895,83.828,0.57739165]
[1772965489455,3.92493375,83.893,83.828,0.57739165]
[1772965489657,3.92493375,83.891,83.828,0.57739165]
[1772965489858,3.92493375,83.889,83.828,0.57739165]
[1772965490156,3.92493375,83.887,83.841,10.735]
[1772965490756,3.92493375,83.887,83.848,10.734]
[1772965490960,3.92493375,83.901,83.849,0.57943597]
[1772965491464,3.92493375,83.901,83.861,10.732]
[1772965492164,3.92493375,83.901,83.869,10.731]
[1772965493060,3.92493375,83.901,83.86,10.732]
[1772965495168,3.92493375,83.901,83.851,10.733]
[1772965495863,3.92493375,83.899,83.8,0.59743023]
[1772965496069,3.92493375,83.897,83.8,0.59743023]
[1772965496366,3.92493375,83.895,83.8,0.59743023]
[1772965496664,3.92493375,83.885,83.835,10.735]
[1772965497165,3.92493375,83.885,83.836,0.60048705]
[1772965497364,21.99084517,83.946,83.79,289.72591033]
[1772965497365,3.92493375,83.902,83.802,0.60048705]
[1772965498972,11.10269172,83.931,83.801,21.48]
[1772965498973,3.92493375,83.9,83.846,10.734]
[1772965499273,3.92493375,83.898,83.839,0.55523292]
[1772965499571,3.92493375,83.889,83.84,10.735]
[1772965500261,3.92493375,83.887,83.839,0.55523292]
[1772965500871,3.92493375,83.886,83.839,0.55523292]
[1772965501463,3.92493375,83.886,83.791,0.58873018]
[1772965502268,10.731,83.872,83.819,0.58873018]
[1772965502465,9.13062922,83.931,83.83,62.0]
[1772965502971,9.13461807,83.952,83.83,62.0]
[1772965504073,9.13461807,83.973,83.838,166.995]
[1772965504273,9.13461807,83.973,83.833,40.38865608]
[1772965504470,9.13461807,83.973,83.843,11.93]
[1772965504676,9.13461807,83.973,83.877,21.46]
[1772965504876,9.13461807,83.973,83.83,62.0]
[1772965505173,0.00061807,83.973,83.841,166.99]
[1772965505471,15.2813813,84.004,83.83,62.0]
[1772965505672,2.07318708,84.001,83.83,62.0]
[1772965506473,15.2813813,84.004,83.849,166.975]
[1772965506677,15.2813813,84.004,83.856,166.96]
[1772965506877,15.2813813,84.004,83.841,28.45865608]
[1772965507077,15.2813813,84.004,83.849,166.973]
[1772965507273,4.37890094,84.003,83.847,166.978]
[1772965507474,15.2813813,84.004,83.865,166.943]
[1772965507869,15.2813813,84.004,83.857,166.958]
[1772965508173,15.2813813,84.004,83.902,21.454]
[1772965508372,4.37890094,84.003,83.835,190.64]
[1772965508685,4.50214443,84.0,83.872,21.462]
[1772965509371,4.50214443,83.983,83.907,10.726]
[1772965509572,4.50214443,83.983,83.897,921.10189449]
[1772965510377,4.50214443,83.97,83.898,10.727]
[1772965510576,4.50214443,83.97,83.897,921.10189449]
[1772965510978,4.56004837,83.969,83.897,921.10189449]
[1772965511778,4.56004837,83.953,83.811,21.477]
[1772965514882,4.49714269,83.949,83.811,21.477]
[1772965515482,4.49714269,83.949,83.815,11.93]
[1772965516084,4.49714269,83.949,83.899,10.727]
[1772965517078,4.41711227,83.983,83.908,10.726]
[1772965517688,4.41711227,83.98,83.918,10.725]
[1772965518589,4.41711227,83.98,83.882,935.67162102]
[1772965519084,4.41711227,83.98,83.921,10.724]
[1772965520078,4.41711227,83.98,83.932,10.723]
[1772965520786,4.41711227,83.98,83.922,10.724]
[1772965521189,4.41711227,83.98,83.882,935.67162102]
[1772965521388,4.42397975,84.003,83.882,935.67162102]
[1772965521889,15.2813813,84.004,83.882,935.67162102]
[1772965522591,15.2813813,84.004,83.882,947.73381755]
[1772965523487,15.2813813,84.004,83.883,11.93]
[1772965524088,4.42545463,84.003,83.883,11.93]
[1772965524483,4.42545463,84.003,83.908,21.453]
[1772965524991,4.42545463,84.003,83.936,10.722]
[1772965525189,4.42545463,84.003,83.882,947.73381755]
[1772965525788,15.2813813,84.004,83.882,947.73381755]
[1772965526395,15.2813813,84.004,83.89,62.0]
[1772965526783,4.48750554,84.003,83.89,62.0]
[1772965527189,4.48750554,84.003,83.895,21.456]
[1772965527890,4.48750554,83.999,83.895,21.456]
[1772965529393,15.2813813,84.004,83.895,21.456]
[1772965529590,4.51575127,83.995,83.895,21.456]
[1772965530186,4.51575127,83.995,83.948,10.721]
[1772965530593,15.2813813,84.004,83.948,10.721]
[1772965531393,4.52066553,84.003,83.948,10.721]
[1772965531596,4.52066553,84.003,83.895,21.456]
[1772965531797,4.52066553,84.003,83.89,62.0]
[1772965531993,4.52066553,84.003,83.935,10.722]
[1772965532696,4.52355207,83.991,83.926,10.724]
[1772965533798,4.52355207,83.987,83.926,10.724]
[1772965534496,4.4626868,83.985,83.916,10.725]
[1772965535095,15.2813813,84.004,83.906,10.726]
[1772965535096,4.4626868,83.969,83.906,10.726]
[1772965535797,4.4626868,83.967,83.897,10.727]
[1772965536192,10.719,83.965,83.897,10.727]
[1772965536398,4.4626868,83.964,83.897,10.727]
[1772965537491,4.4626868,83.964,83.905,10.726]
[1772965542002,4.32691962,83.962,83.896,10.728]
[1772965542203,4.32691962,83.962,83.882,935.67162102]
[1772965543107,4.32691962,83.962,83.906,10.726]
[1772965543714,4.32751224,83.96,83.882,935.67162102]
[1772965544413,4.32751224,83.958,83.882,935.67162102]
[1772965545909,4.28393014,83.956,83.882,935.67162102]
[1772965546910,4.28393014,83.956,83.904,10.726]
[1772965547108,4.28393014,83.956,83.882,935.67162102]
[1772965547518,4.28393014,83.956,83.903,10.727]
[1772965548712,4.34015485,83.954,83.894,10.728]
[1772965549520,4.34015485,83.951,83.882,935.67162102]
[1772965550018,4.34015485,83.951,83.9,10.727]
[1772965551819,4.34015485,83.951,83.91,10.726]
[1772965553019,4.34015485,83.951,83.882,935.67162102]
[1772965554322,4.33520595,83.994,83.882,935.67162102]
[1772965555921,4.34647647,83.969,83.912,10.726]
[1772965556920,4.36889482,83.967,83.912,10.726]
[1772965557621,4.36889482,83.967,83.92,10.724]
[1772965558824,4.36668015,83.958,83.882,935.67162102]
[1772965560025,4.36668015,83.989,83.883,21.459]
[1772965560222,4.36668015,83.987,83.882,935.67162102]
[1772965560428,9.5458538,83.986,83.882,935.67162102]
[1772965560623,4.36246503,83.984,83.882,935.67162102]
[1772965560824,4.36246503,83.976,83.884,21.459]
[1772965561520,4.36246503,83.976,83.927,10.724]
[1772965563229,4.36246503,83.976,83.934,10.723]
[1772965566918,4.36246503,83.976,83.884,21.459]
[1772965567520,4.41299455,83.973,83.884,21.459]
[1772965569930,4.41299455,83.973,83.919,10.725]
[1772965570729,4.41333155,83.971,83.919,10.725]
[1772965574139,4.41333155,83.971,83.926,10.724]
[1772965575645,4.41333155,83.971,83.885,11.93]
[1772965576343,4.41333155,83.971,83.892,21.457]
[1772965576546,4.41333155,83.971,83.882,935.67162102]
[1772965576838,4.40248503,83.946,83.882,935.67162102]
[1772965578940,4.40248503,83.946,83.902,10.727]
[1772965580641,4.40248503,83.946,83.893,10.728]
[1772965581144,4.40248503,83.946,83.882,935.67162102]
[1772965582734,4.40248503,83.946,83.901,10.727]
[1772965585149,4.39969913,83.963,83.908,10.726]
[1772965585340,4.39969913,83.961,83.908,10.726]
[1772965585647,4.39969913,83.959,83.908,10.726]